bitfinex/quotes_BTCUSD_20240611
["timestamp","ask_amount","ask_price","bid_price","bid_amount"]
[1718119438890,0.3165,66926.0,66919.0,0.14431993]
[1718119439121,0.2,66930.0,66917.0,0.1]
[1718119439122,0.1,66930.0,66917.0,0.1]
[1718119439579,0.19127377,66927.0,66918.0,0.1263]
[1718119440007,0.19127377,66926.0,66918.0,0.1263]
[1718119440419,0.19127377,66925.0,66918.0,0.1263]
[1718119440629,0.19127377,66928.0,66919.0,0.1]
[1718119440832,0.01740445,66930.0,66919.0,0.1]
[1718119440833,0.19127377,66929.0,66919.0,0.1]
[1718119441047,0.19127377,66928.0,66919.0,0.1]
[1718119441489,0.19127377,66924.0,66919.0,0.1]
[1718119442114,0.19127377,66927.0,66919.0,0.1]
[1718119442345,0.29127377,66930.0,66919.0,0.1]
[1718119442547,0.29127377,66930.0,66920.0,0.00597635]
[1718119442548,0.1,66930.0,66920.0,0.00597635]
[1718119443396,0.1,66930.0,66919.0,0.1]
[1718119443397,0.19127377,66934.0,66922.0,0.0305]
[1718119443603,0.19127377,66934.0,66923.0,0.14431993]
[1718119443810,0.19127377,66934.0,66924.0,0.1]
[1718119444023,0.1,66933.0,66924.0,0.24431993]
[1718119444239,0.29127377,66933.0,66924.0,0.24431993]
[1718119444442,0.19127377,66933.0,66924.0,0.24431993]
[1718119444864,0.19127377,66931.0,66924.0,0.24431993]
[1718119445070,0.19127377,66926.0,66924.0,0.1]
[1718119445282,0.1,66933.0,66923.0,0.001]
[1718119445283,0.19127377,66924.0,66923.0,0.001]
[1718119445515,0.19127377,66924.0,66916.0,0.11132739]
[1718119445516,0.19127377,66923.0,66921.0,0.14453095]
[1718119445972,0.19127377,66926.0,66921.0,0.14453095]
[1718119446374,0.19127377,66926.0,66922.0,0.04453095]
[1718119446794,0.19127377,66925.0,66922.0,0.04453095]
[1718119447144,0.01329397,66924.0,66922.0,0.04453095]
[1718119448207,0.01329397,66924.0,66923.0,0.001]
[1718119448629,0.01329397,66924.0,66923.0,0.09143632]
[1718119448835,0.19127377,66926.0,66923.0,0.19143632]
[1718119449043,0.19127377,66926.0,66924.0,0.09143632]
[1718119449255,0.20867822,66925.0,66924.0,0.19143632]
[1718119450578,0.19127377,66925.0,66924.0,0.09143632]
[1718119450792,0.19127377,66925.0,66924.0,0.19143632]
[1718119451008,0.20456774,66925.0,66924.0,0.19143632]
[1718119451373,0.22197219,66925.0,66924.0,0.19143632]
[1718119451998,0.22197219,66925.0,66924.0,0.09143632]
[1718119452833,0.22197219,66925.0,66924.0,0.09243632]
[1718119453176,0.22197219,66925.0,66924.0,0.001]
[1718119453579,0.22197219,66925.0,66924.0,0.09243632]
[1718119454330,0.22197219,66925.0,66924.0,0.001]
[1718119454749,0.22197219,66925.0,66924.0,0.09243632]
[1718119455157,0.22197219,66925.0,66924.0,0.001]
[1718119455779,0.22197219,66925.0,66924.0,0.09243632]
[1718119456656,0.22197219,66925.0,66924.0,0.001]
[1718119456846,0.22197219,66925.0,66924.0,0.09435577]
[1718119456847,0.20456774,66925.0,66924.0,0.09435577]
[1718119457228,0.01329397,66925.0,66924.0,0.09435577]
[1718119457678,0.20456774,66925.0,66924.0,0.09435577]
[1718119458006,0.22197219,66925.0,66924.0,0.09435577]
[1718119458717,0.22197219,66925.0,66924.0,0.19435577]
[1718119458932,0.22197219,66925.0,66924.0,0.09435577]
[1718119459145,1.13321212,66925.0,66924.0,0.09435577]
[1718119459351,1.13321212,66925.0,66924.0,0.001]
[1718119459633,1.23321212,66925.0,66924.0,0.001]
[1718119461406,0.90241212,66925.0,66924.0,0.001]
[1718119461655,1.23521212,66925.0,66924.0,0.001]
[1718119462131,1.23721212,66925.0,66924.0,0.001]
[1718119462367,1.23721212,66925.0,66907.0,0.10259791]
[1718119462368,0.01,66908.0,66907.0,0.00259791]
[1718119462617,0.20867822,66908.0,66907.0,0.09973414]
[1718119462843,0.20867822,66908.0,66907.0,0.21768386]
[1718119463080,0.20455716,66908.0,66907.0,0.19973414]
[1718119464865,0.01328339,66908.0,66907.0,0.19973414]
[1718119465073,0.01328339,66908.0,66907.0,0.24436416]
[1718119465282,0.01740445,66916.0,66907.0,0.24536416]
[1718119465283,0.19127377,66913.0,66907.0,0.24536416]
[1718119465487,0.01317509,66908.0,66907.0,0.20073414]
[1718119465699,0.19127377,66916.0,66907.0,0.24509488]
[1718119465905,0.19127377,66915.0,66908.0,0.09684373]
[1718119466120,0.20444886,66915.0,66908.0,0.19684373]
[1718119466323,0.01317509,66915.0,66909.0,0.09684373]
[1718119466535,0.01317509,66915.0,66909.0,0.19684373]
[1718119466736,0.01317509,66915.0,66910.0,0.09720223]
[1718119466953,0.01317509,66915.0,66910.0,0.19720223]
[1718119467173,0.20444886,66915.0,66911.0,0.09720223]
[1718119467410,0.19127377,66913.0,66911.0,0.19720223]
[1718119467612,0.01317509,66914.0,66912.0,0.09720223]
[1718119467813,0.19127377,66914.0,66912.0,0.09720223]
[1718119468043,0.01317509,66913.0,66912.0,0.09720223]
[1718119468685,0.01317509,66913.0,66911.0,0.09720223]
[1718119469125,0.19127377,66916.0,66912.0,0.09720223]
[1718119469363,0.1,66920.0,66910.0,0.001]
[1718119469364,0.19127377,66912.0,66910.0,0.001]
[1718119469583,0.19127377,66912.0,66911.0,0.09831182]
[1718119469800,0.20867822,66912.0,66911.0,0.09831182]
[1718119470023,0.38537822,66912.0,66911.0,0.09831182]
[1718119470234,0.38537822,66912.0,66910.0,0.001]
[1718119470451,0.20867822,66911.0,66910.0,0.001]
[1718119470673,0.1767,66912.0,66907.0,0.00259791]
[1718119470674,0.20867822,66908.0,66907.0,0.00259791]
[1718119470890,0.20867822,66908.0,66907.0,0.10199]
[1718119471356,0.20867822,66908.0,66907.0,0.00259791]
[1718119471792,0.30867822,66908.0,66907.0,0.13085991]
[1718119472031,0.79193922,66907.0,66906.0,0.01789672]
[1718119472236,1.11295915,66907.0,66906.0,0.01789672]
[1718119472465,1.11295915,66907.0,66899.0,0.14727336]
[1718119472466,0.20867822,66900.0,66899.0,0.14727336]
[1718119472694,0.20867822,66900.0,66899.0,0.23087143]
[1718119472929,0.20867822,66900.0,66899.0,0.24820275]
[1718119474971,0.20867822,66900.0,66899.0,0.24920275]
[1718119476092,0.20867822,66900.0,66899.0,0.12133676]
[1718119476304,0.54747822,66900.0,66899.0,0.15114181]
[1718119476561,0.96849815,66900.0,66899.0,0.02133676]
[1718119476774,0.96849815,66900.0,66899.0,0.15114358]
[1718119476775,0.99162182,66900.0,66899.0,0.15114358]
[1718119476986,0.99162182,66900.0,66899.0,0.02133676]
[1718119477237,0.11,66896.0,66895.0,0.009427]
[1718119477439,0.30867822,66896.0,66895.0,0.009427]
[1718119477672,0.40867822,66896.0,66895.0,0.009427]
[1718119477891,0.42180189,66896.0,66895.0,0.02709231]
[1718119478320,0.42180189,66896.0,66895.0,0.009427]
[1718119480456,0.42180189,66896.0,66895.0,0.010427]
[1718119480650,0.42180189,66896.0,66895.0,0.009427]
[1718119481040,0.42180189,66896.0,66895.0,0.010427]
[1718119481441,0.40439744,66896.0,66895.0,0.010427]
[1718119481647,0.42180189,66896.0,66895.0,0.010427]
[1718119481892,0.40439744,66896.0,66895.0,0.010427]
[1718119482320,0.42180189,66896.0,66895.0,0.010427]
[1718119483073,0.21312367,66896.0,66895.0,0.010427]
[1718119483281,0.40439744,66896.0,66895.0,0.010427]
[1718119484275,0.42180189,66896.0,66895.0,0.010427]
[1718119485081,0.30439744,66896.0,66895.0,0.010427]
[1718119485281,0.40439744,66896.0,66895.0,0.010427]
[1718119485488,0.42180189,66896.0,66895.0,0.010427]
[1718119485663,0.40439744,66896.0,66895.0,0.010427]
[1718119485868,0.30439744,66896.0,66895.0,0.010427]
[1718119486117,0.40439744,66896.0,66895.0,0.010427]
[1718119486486,0.30439744,66896.0,66895.0,0.010427]
[1718119486732,0.42180189,66896.0,66895.0,0.010427]
[1718119486961,0.30439744,66896.0,66895.0,0.010427]
[1718119487587,0.42180189,66896.0,66895.0,0.010427]
[1718119487790,0.32180189,66896.0,66895.0,0.010427]
[1718119488380,0.42180189,66896.0,66895.0,0.010427]
[1718119489154,0.40439744,66896.0,66895.0,0.010427]
[1718119489811,0.42180189,66896.0,66895.0,0.010427]
[1718119490145,0.40439744,66896.0,66895.0,0.010427]
[1718119490283,0.40439744,66896.0,66895.0,0.14085153]
[1718119490483,0.30439744,66896.0,66895.0,0.14085153]
[1718119490909,0.11312367,66896.0,66895.0,0.010427]
[1718119491318,0.11312367,66896.0,66895.0,0.14049066]
[1718119492152,0.01312367,66896.0,66895.0,0.14049066]
[1718119492372,0.01312367,66896.0,66895.0,0.13940385]
[1718119492587,0.1,66902.0,66895.0,0.13840385]
[1718119492756,0.01306339,66896.0,66895.0,0.010427]
[1718119493090,0.19127377,66903.0,66897.0,0.1476]
[1718119493480,0.19127377,66903.0,66898.0,0.12895747]
[1718119493679,0.19127377,66903.0,66899.0,0.12895747]
[1718119493881,0.29127377,66903.0,66900.0,0.12895747]
[1718119494219,0.1,66902.0,66901.0,0.12895747]
[1718119494612,0.1,66902.0,66901.0,0.12829982]
[1718119494827,0.1,66902.0,66898.0,0.12829982]
[1718119495034,0.19127377,66899.0,66898.0,0.12829982]
[1718119495243,0.20867822,66899.0,66898.0,0.12829982]
[1718119495455,0.20867822,66897.0,66896.0,0.12848956]
[1718119495862,0.22174161,66897.0,66896.0,0.12848956]
[1718119496826,0.19127377,66896.0,66895.0,0.02705283]
[1718119497439,0.20433716,66896.0,66895.0,0.15450642]
[1718119498043,0.20433716,66896.0,66895.0,0.15442526]
[1718119498262,0.22174161,66896.0,66895.0,0.15442526]
[1718119498941,0.20433716,66896.0,66895.0,0.15442526]
[1718119500279,0.37122661,66896.0,66895.0,0.15442526]
[1718119500504,0.35382216,66896.0,66895.0,0.15442526]
[1718119500954,0.20433716,66896.0,66895.0,0.15442526]
[1718119501633,0.01306339,66896.0,66895.0,0.15442526]
[1718119502100,0.61745077,66900.0,66895.0,0.15442526]
[1718119502343,0.19127377,66899.0,66896.0,0.12737243]
[1718119502561,0.20867822,66898.0,66897.0,0.12737243]
[1718119503660,0.1,66900.0,66897.0,0.12737243]
[1718119503885,0.1,66900.0,66898.0,0.12737243]
[1718119504110,0.1,66901.0,66899.0,0.12737243]
[1718119504331,0.1,66901.0,66900.0,0.12737243]
[1718119504824,0.63737377,66902.0,66900.0,0.12737243]
[1718119505015,0.1,66901.0,66895.0,0.17355283]
[1718119505222,0.19127377,66899.0,66896.0,0.12811435]
[1718119505433,0.31615246,66898.0,66897.0,0.12811435]
[1718119505679,0.78705922,66898.0,66897.0,0.12811435]
[1718119505974,1.35524115,66898.0,66897.0,0.12811435]
[1718119506444,1.34524115,66898.0,66895.0,0.009427]
[1718119506690,0.79996322,66896.0,66895.0,0.009427]
[1718119506909,1.04428315,66896.0,66895.0,0.009427]
[1718119507321,1.05428315,66896.0,66895.0,0.009427]
[1718119507975,1.04428315,66896.0,66895.0,0.009427]
[1718119509429,1.04428315,66896.0,66895.0,0.00313247]
[1718119510918,1.05727275,66896.0,66895.0,0.00313247]
[1718119511504,1.23397275,66896.0,66895.0,0.00313247]
[1718119511918,0.6546746,66896.0,66895.0,0.00313247]
[1718119512265,0.84894837,66896.0,66895.0,0.00313247]
[1718119512607,0.84594837,66896.0,66895.0,0.00313247]
[1718119512741,0.86335282,66896.0,66895.0,0.00313247]
[1718119512951,0.84594837,66896.0,66895.0,0.00313247]
[1718119514190,0.86335282,66896.0,66895.0,0.00313247]
[1718119515829,0.84594837,66896.0,66895.0,0.00313247]
[1718119516710,0.86335282,66896.0,66895.0,0.00313247]
[1718119517786,0.76335282,66896.0,66895.0,0.00313247]
[1718119518002,0.86335282,66896.0,66895.0,0.00313247]
[1718119520567,0.86535282,66896.0,66895.0,0.00313247]
[1718119521898,0.74985282,66896.0,66895.0,0.00313247]
[1718119522120,0.73244837,66896.0,66895.0,0.00313247]
[1718119522995,0.64395282,66896.0,66895.0,0.00313247]
[1718119523405,0.2644746,66896.0,66895.0,0.00313247]
[1718119523838,0.3352746,66896.0,66895.0,0.04789291]
[1718119524923,0.2644746,66896.0,66895.0,0.00313247]
[1718119525551,0.45374837,66896.0,66895.0,0.00313247]
[1718119527648,0.57115282,66896.0,66895.0,0.00313247]
[1718119527844,1.08705282,66896.0,66895.0,0.00313247]
[1718119528193,1.54034375,66896.0,66895.0,0.00313247]
[1718119528408,1.83931475,66896.0,66895.0,0.00313247]
[1718119529602,1.98363468,66896.0,66895.0,0.00313247]
[1718119529804,0.40867822,66879.0,66878.0,0.04680261]
[1718119530013,0.40867822,66879.0,66878.0,0.00203071]
[1718119530014,0.70252115,66879.0,66878.0,0.00203071]
[1718119530166,0.71555851,66879.0,66878.0,0.00203071]
[1718119534319,0.71755851,66879.0,66878.0,0.00203071]
[1718119535097,0.95025851,66879.0,66878.0,0.00203071]
[1718119535309,1.06425851,66879.0,66878.0,0.00203071]
[1718119535514,1.07425851,66879.0,66878.0,0.00203071]
[1718119535759,1.07225851,66879.0,66878.0,0.00203071]
[1718119537085,1.07625851,66879.0,66878.0,0.00203071]
[1718119537616,1.07225851,66879.0,66878.0,0.00203071]
[1718119539074,1.07825851,66879.0,66878.0,0.00203071]
[1718119539500,1.07225851,66879.0,66878.0,0.00203071]
[1718119539705,1.07925851,66879.0,66878.0,0.00303071]
[1718119542786,0.19127377,66865.0,66815.0,0.32336762]
[1718119542993,0.1771,66863.0,66849.0,0.00971069]
[1718119543430,0.01290734,66862.0,66849.0,0.03665822]
[1718119544126,0.01290734,66862.0,66849.0,0.05431263]
[1718119544340,0.01290734,66862.0,66849.0,0.00971069]
[1718119545597,0.20418111,66862.0,66849.0,0.00971069]
[1718119546011,0.01290734,66862.0,66849.0,0.00971069]
[1718119549341,0.20418111,66862.0,66849.0,0.00971069]
[1718119549549,0.01290734,66862.0,66849.0,0.00971069]
[1718119549767,0.20418111,66862.0,66849.0,0.00971069]
[1718119551720,0.01290734,66862.0,66849.0,0.00971069]
[1718119551940,0.1771,66857.0,66849.0,0.00028369]
[1718119552600,0.01283806,66856.0,66849.0,0.00028369]
[1718119554967,0.1,66855.0,66849.0,0.00028369]
[1718119555187,0.1128049,66855.0,66849.0,0.00028369]
[1718119555835,0.1128049,66855.0,66849.0,0.00114369]
[1718119556245,0.0128049,66855.0,66849.0,0.004391]
[1718119556460,0.0128049,66855.0,66849.0,0.00114369]
[1718119556664,0.1,66860.0,66849.0,0.00114369]
[1718119556900,0.0128049,66854.0,66849.0,0.00114369]
[1718119557101,0.1,66860.0,66849.0,0.00114369]
[1718119557303,0.0128049,66859.0,66849.0,0.00114369]
[1718119557479,0.1,66860.0,66849.0,0.00114369]
[1718119557889,0.0128049,66858.0,66849.0,0.00114369]
[1718119558225,0.0128049,66859.0,66849.0,0.00114369]
[1718119558427,0.1,66860.0,66849.0,0.00114369]
[1718119558642,0.0128049,66858.0,66849.0,0.00114369]
[1718119558856,0.1,66860.0,66849.0,0.00114369]
[1718119559078,0.0128049,66857.0,66849.0,0.00114369]
[1718119559317,0.1,66860.0,66849.0,0.00114369]
[1718119559523,0.0128049,66856.0,66849.0,0.00114369]
[1718119559984,0.1,66860.0,66849.0,0.00114369]
[1718119560199,0.0128049,66855.0,66849.0,0.00114369]
[1718119560638,0.1,66860.0,66849.0,0.00114369]
[1718119560853,0.2771,66862.0,66849.0,0.00114369]
[1718119561022,0.0128049,66859.0,66849.0,0.00114369]
[1718119561259,0.1,66862.0,66849.0,0.10986992]
[1718119561467,0.0128049,66858.0,66849.0,0.07928646]
[1718119561678,0.1,66871.0,66849.0,0.22390209]
[1718119561888,0.24431993,66870.0,66849.0,0.29080121]
[1718119562095,0.15712483,66870.0,66850.0,0.03366305]
[1718119562304,0.15712483,66870.0,66853.0,0.06690022]
[1718119562517,0.1,66867.0,66855.0,0.149576]
[1718119562734,0.1,66865.0,66856.0,0.1]
[1718119563175,0.0709,66862.0,66856.0,0.1]
[1718119563828,0.07215996,66857.0,66856.0,0.1]
[1718119564057,0.0709,66857.0,66852.0,0.1]
[1718119564276,0.0709,66857.0,66850.0,0.0025993]
[1718119564485,0.0709,66854.0,66850.0,0.0025993]
[1718119565124,0.1,66865.0,66850.0,0.0025993]
[1718119565350,0.0128049,66853.0,66851.0,0.03367913]
[1718119565792,0.34431993,66864.0,66851.0,0.03367913]
[1718119566168,0.0128049,66863.0,66850.0,0.1025993]
[1718119566403,0.0128049,66863.0,66850.0,0.0025993]
[1718119566404,0.07215996,66859.0,66850.0,0.0025993]
[1718119566633,0.14431993,66858.0,66850.0,0.0025993]
[1718119566908,0.49389093,66858.0,66850.0,0.0025993]
[1718119567115,0.0128049,66857.0,66850.0,0.0025993]
[1718119569100,0.2128049,66857.0,66850.0,0.0025993]
[1718119569307,0.0128049,66857.0,66850.0,0.0025993]
[1718119569532,0.2128049,66857.0,66850.0,0.00230263]
[1718119571619,0.2,66855.0,66850.0,0.00230263]
[1718119571844,0.2,66851.0,66850.0,0.00230263]
[1718119572068,0.14431993,66851.0,66850.0,0.00230263]
[1718119572281,0.34431993,66851.0,66849.0,0.00114369]
[1718119572417,0.15713047,66851.0,66849.0,0.00114369]
[1718119572626,0.36172438,66850.0,66849.0,0.00114369]
[1718119572834,0.34431993,66850.0,66849.0,0.00114369]
[1718119573248,0.34431993,66850.0,66848.0,0.01676129]
[1718119573481,0.35713047,66850.0,66846.0,0.04469813]
[1718119574021,0.15713047,66850.0,66846.0,0.04469813]
[1718119574315,0.15713047,66850.0,66847.0,0.04469813]
[1718119574316,0.35713047,66850.0,66847.0,0.04469813]
[1718119574547,0.2,66848.0,66847.0,0.14469813]
[1718119574895,0.2,66848.0,66845.0,0.009416]
[1718119574896,0.2,66846.0,66845.0,0.009416]
[1718119575256,0.71132138,66846.0,66845.0,0.009416]
[1718119575491,1.06412138,66846.0,66845.0,0.009416]
[1718119575918,1.07693192,66846.0,66845.0,0.009416]
[1718119576640,1.23672747,66846.0,66845.0,0.009416]
[1718119577052,1.25413192,66846.0,66845.0,0.009416]
[1718119578821,1.23672747,66846.0,66845.0,0.009416]
[1718119579263,1.24472747,66846.0,66845.0,0.010416]
[1718119579713,1.23672747,66846.0,66845.0,0.009416]
[1718119579946,1.26213192,66846.0,66845.0,0.010416]
[1718119580397,0.86752747,66846.0,66845.0,0.010416]
[1718119580617,1.06752747,66846.0,66845.0,0.010416]
[1718119580829,0.86752747,66846.0,66845.0,0.010416]
[1718119581541,1.08493192,66846.0,66845.0,0.010416]
[1718119581766,1.08493192,66846.0,66845.0,0.009416]
[1718119581767,1.07693192,66846.0,66845.0,0.009416]
[1718119581998,1.25413192,66846.0,66845.0,0.009416]
[1718119582229,1.25513192,66846.0,66845.0,0.0091206]
[1718119582452,1.25413192,66846.0,66845.0,0.0091206]
[1718119585728,1.24132138,66846.0,66845.0,0.0091206]
[1718119585943,1.25399813,66846.0,66845.0,0.0091206]
[1718119587245,0.55220445,66833.0,66832.0,0.00021458]
[1718119587496,0.1,66829.0,66828.0,0.009416]
[1718119587739,0.59395493,66829.0,66828.0,0.009416]
[1718119587976,0.72403613,66829.0,66828.0,0.009416]
[1718119588186,0.62403613,66829.0,66828.0,0.009416]
[1718119588422,0.72403613,66829.0,66828.0,0.009416]
[1718119590572,0.98493613,66829.0,66828.0,0.009416]
[1718119590798,1.11093613,66829.0,66828.0,0.009416]
[1718119591861,1.12093613,66829.0,66828.0,0.009416]
[1718119592078,1.11093613,66829.0,66828.0,0.009416]
[1718119592281,1.11093613,66829.0,66828.0,0.00912053]
[1718119592709,1.11393613,66829.0,66828.0,0.00912053]
[1718119592920,1.11093613,66829.0,66828.0,0.00912053]
[1718119593371,1.11393613,66829.0,66828.0,0.00912053]
[1718119594688,1.11093613,66829.0,66828.0,0.00912053]
[1718119594889,1.12393613,66829.0,66828.0,0.00912053]
[1718119595095,1.42320713,66829.0,66828.0,0.00912053]
[1718119595268,1.42020713,66829.0,66828.0,0.00912053]
[1718119595489,1.42320713,66829.0,66828.0,0.00912053]
[1718119595880,1.42320713,66829.0,66812.0,0.013326]
[1718119595881,0.85667545,66813.0,66812.0,0.013326]
[1718119596105,1.17819538,66813.0,66812.0,0.013326]
[1718119596305,1.19080608,66813.0,66812.0,0.013326]
[1718119597465,1.29080608,66813.0,66812.0,0.013326]
[1718119598699,1.70823291,66813.0,66812.0,0.013326]
[1718119598809,1.60014808,66813.0,66812.0,0.014326]
[1718119599239,1.59014808,66813.0,66812.0,0.01243627]
[1718119599417,0.22,66809.0,66791.0,0.00259792]
[1718119599628,1.12480438,66809.0,66786.0,0.0966]
[1718119599837,1.43657507,66809.0,66786.0,0.0966]
[1718119600043,0.57710245,66801.0,66781.0,0.09919632]
[1718119600261,1.30202238,66801.0,66781.0,0.00259632]
[1718119600488,1.30202238,66801.0,66780.0,0.00857]
[1718119600489,0.4833,66783.0,66780.0,0.00857]
[1718119600721,1.12222438,66783.0,66780.0,0.00857]
[1718119600935,1.10717307,66783.0,66780.0,0.00857]
[1718119601158,1.26696862,66783.0,66780.0,0.00857]
[1718119601373,0.50646862,66783.0,66780.0,0.00857]
[1718119601784,0.72387307,66783.0,66780.0,0.00857]
[1718119601995,0.70646862,66783.0,66780.0,0.00857]
[1718119602441,0.72387307,66783.0,66780.0,0.00857]
[1718119602654,0.72387307,66783.0,66782.0,0.00957]
[1718119602868,0.72387307,66783.0,66782.0,0.00857]
[1718119603113,0.50646862,66783.0,66782.0,0.00857]
[1718119603384,0.68366862,66783.0,66782.0,0.00957]
[1718119603650,0.70646862,66783.0,66782.0,0.00957]
[1718119603953,0.01241069,66783.0,66782.0,0.10617]
[1718119604376,0.07215996,66785.0,66782.0,0.10617]
[1718119604624,0.1,66784.0,66782.0,0.10517]
[1718119604844,0.07215996,66785.0,66782.0,0.10517]
[1718119605051,0.07215996,66785.0,66783.0,0.1]
[1718119606358,0.07215996,66785.0,66783.0,0.101]
[1718119606587,0.14431993,66784.0,66783.0,0.101]
[1718119607441,0.07215996,66785.0,66783.0,0.101]
[1718119607850,0.07215996,66785.0,66783.0,0.1]
[1718119608411,0.07215996,66785.0,66783.0,0.101]
[1718119608635,0.14431993,66784.0,66783.0,0.101]
[1718119609096,0.14431993,66784.0,66783.0,0.1]
[1718119609528,0.14431993,66784.0,66783.0,0.101]
[1718119609741,0.14431993,66784.0,66783.0,0.1]
[1718119611590,0.14431993,66784.0,66783.0,0.101]
[1718119611809,0.07215996,66785.0,66783.0,0.1]
[1718119612200,0.07215996,66785.0,66783.0,0.101]
[1718119612425,0.07215996,66785.0,66783.0,0.1]
[1718119612943,0.07215996,66785.0,66783.0,0.101]
[1718119613160,0.07215996,66785.0,66783.0,0.1]
[1718119613369,0.07215996,66785.0,66783.0,0.101]
[1718119615556,0.07215996,66785.0,66783.0,0.1]
[1718119615776,0.07215996,66785.0,66783.0,0.101]
[1718119616016,0.01230028,66784.0,66783.0,0.101]
[1718119616223,0.01230028,66784.0,66783.0,0.1]
[1718119616668,0.01230028,66784.0,66783.0,0.101]
[1718119616892,0.01230028,66784.0,66783.0,0.1]
[1718119617100,0.01230028,66784.0,66783.0,0.101]
[1718119618370,0.01230028,66784.0,66783.0,0.001]
[1718119618586,0.01230028,66784.0,66782.0,0.00857]
[1718119619026,0.01230028,66784.0,66783.0,0.001]
[1718119619237,0.01230028,66784.0,66782.0,0.00857]
[1718119619488,0.01230028,66784.0,66783.0,0.00086]
[1718119619726,0.01230028,66784.0,66783.0,0.00186]
[1718119619978,0.15662021,66784.0,66783.0,0.00086]
[1718119620437,0.35662021,66784.0,66783.0,0.00186]
[1718119620616,0.15662021,66784.0,66783.0,0.00086]
[1718119621541,0.01230028,66784.0,66783.0,0.00086]
[1718119621753,0.15662021,66784.0,66783.0,0.00086]
[1718119622174,0.15662021,66784.0,66783.0,0.00186]
[1718119622601,0.01230028,66784.0,66783.0,0.14866]
[1718119622805,0.01230028,66784.0,66783.0,0.24966]
[1718119623233,0.01230028,66784.0,66783.0,0.41367336]
[1718119623664,0.01230028,66784.0,66783.0,0.41467336]
[1718119623883,0.01230028,66784.0,66783.0,0.41367336]
[1718119625402,0.01230028,66784.0,66783.0,0.41467336]
[1718119625646,0.01230028,66784.0,66783.0,0.41367336]
[1718119625859,0.07215996,66785.0,66783.0,0.41367336]
[1718119626080,0.07215996,66785.0,66784.0,0.16501336]
[1718119626309,0.63388434,66785.0,66784.0,0.16501336]
[1718119626527,0.56714045,66784.0,66783.0,0.00186]
[1718119626735,0.71146038,66784.0,66783.0,0.00186]
[1718119626965,0.71146038,66784.0,66783.0,0.00086]
[1718119627182,0.71146038,66784.0,66783.0,0.00186]
[1718119627846,0.69405593,66784.0,66783.0,0.00186]
[1718119628309,0.71146038,66784.0,66783.0,0.00186]
[1718119628742,0.88866038,66784.0,66783.0,0.00186]
[1718119629177,0.88866038,66784.0,66783.0,0.00086]
[1718119629617,0.88866038,66784.0,66783.0,0.00186]
[1718119630042,0.88866038,66784.0,66783.0,0.00086]
[1718119630470,0.88866038,66784.0,66783.0,0.00186]
[1718119630904,0.90095723,66784.0,66783.0,0.00186]
[1718119633964,1.29405723,66784.0,66783.0,0.00186]
[1718119634424,0.02,66781.0,66780.0,0.00857]
[1718119634673,0.95027645,66768.0,66767.0,0.01795346]
[1718119634900,0.95027645,66768.0,66752.0,0.11611712]
[1718119634901,0.2,66762.0,66752.0,0.0494]
[1718119635114,0.2,66762.0,66751.0,0.011158]
[1718119635115,0.71150938,66762.0,66759.0,0.01831119]
[1718119635339,0.71150938,66762.0,66750.0,4e-05]
[1718119635340,1.28623221,66762.0,66750.0,4e-05]
[1718119635560,1.41183221,66762.0,66750.0,4e-05]
[1718119636198,1.11226121,66762.0,66750.0,4e-05]
[1718119636637,1.28946121,66762.0,66750.0,4e-05]
[1718119636882,1.28946121,66762.0,66761.0,0.00956]
[1718119637142,1.28946121,66762.0,66761.0,0.00856]
[1718119637599,1.28946121,66762.0,66761.0,0.00956]
[1718119639509,1.28946121,66762.0,66761.0,0.00856]
[1718119639958,1.11226121,66762.0,66761.0,0.00856]
[1718119640179,1.28946121,66762.0,66761.0,0.00856]
[1718119640382,0.35657176,66762.0,66761.0,0.00856]
[1718119640588,0.36357176,66762.0,66761.0,0.00956]
[1718119640801,0.54077176,66762.0,66761.0,0.00956]
[1718119641012,0.25657176,66762.0,66761.0,0.00856]
[1718119641420,99.693791,66750.0,66748.0,0.5]
[1718119641627,99.693791,66750.0,66749.0,0.249814]
[1718119642246,99.679791,66750.0,66749.0,0.36645204]
[1718119642465,99.679791,66750.0,66749.0,0.28399514]
[1718119642867,199.679791,66750.0,66749.0,0.249814]
[1718119643110,199.679791,66750.0,66749.0,0.28499514]
[1718119643519,199.645791,66750.0,66749.0,0.28499514]
[1718119643995,199.645791,66750.0,66749.0,0.250814]
[1718119644205,399.645791,66750.0,66749.0,0.29545575]
[1718119644435,399.645791,66750.0,66749.0,0.101]
[1718119644653,399.645791,66750.0,66749.0,0.001]
[1718119644925,399.645791,66750.0,66749.0,0.101]
[1718119645354,499.645791,66750.0,66749.0,0.101]
[1718119645531,499.99011093,66750.0,66745.0,0.0241755]
[1718119645771,0.07215996,66746.0,66745.0,0.04253475]
[1718119646611,0.08429316,66746.0,66745.0,0.04253475]
[1718119647456,0.42861309,66746.0,66745.0,0.04253475]
[1718119647670,1.08131754,66746.0,66745.0,0.021886]
[1718119648364,1.23113854,66746.0,66745.0,0.021886]
[1718119648585,1.08131754,66746.0,66745.0,0.021886]
[1718119648821,1.08131754,66746.0,66745.0,0.022886]
[1718119649303,1.08131754,66746.0,66745.0,0.021886]
[1718119649529,1.08131754,66746.0,66745.0,0.022886]
[1718119649747,1.08131754,66746.0,66745.0,0.021886]
[1718119649989,1.23113854,66746.0,66745.0,0.021886]
[1718119650444,0.1,66732.0,66731.0,0.01810065]
[1718119650665,0.1,66731.0,66723.0,0.149872]
[1718119650881,0.07215996,66724.0,66723.0,0.149872]
[1718119651740,0.07215996,66724.0,66723.0,0.249872]
[1718119651954,0.07197979,66724.0,66723.0,0.249872]
[1718119652591,0.07197979,66724.0,66723.0,0.250872]
[1718119652805,0.0390798,66724.0,66723.0,0.249872]
[1718119653023,0.0390798,66724.0,66723.0,0.39505193]
[1718119653235,0.0390798,66724.0,66723.0,0.54172565]
[1718119653873,0.07215996,66732.0,66723.0,0.54172565]
[1718119653874,0.07215996,66732.0,66731.0,0.649855]
[1718119654085,0.07215996,66732.0,66731.0,0.81946443]
[1718119654291,0.07215996,66746.0,66738.0,0.649839]
[1718119654510,0.07215996,66746.0,66745.0,0.649823]
[1718119654737,499.646737,66750.0,66745.0,0.5]
[1718119654981,499.646737,66750.0,66746.0,0.14295811]
[1718119655194,499.646737,66750.0,66748.0,0.149814]
[1718119655195,0.01082348,66749.0,66748.0,0.149814]
[1718119655408,0.01082348,66749.0,66748.0,0.29277211]
[1718119655627,0.01082348,66749.0,66748.0,0.46009204]
[1718119655836,0.000946,66750.0,66749.0,0.149814]